fUSD/lending_fUSD_20260605
["ID","MTS","AMOUNT","RATE_DAILY","PERIOD"]
[424186601,1780635039000,-1159.11,0.00013698,2]
[424186605,1780635039000,-1159.11,0.00013698,2]
[424186600,1780635039000,-1159.11,0.00013698,2]
[424186594,1780635039000,-1159.11,0.00013698,2]
[424186598,1780635039000,-1159.11,0.00013698,2]
[424186604,1780635039000,-1159.11,0.00013698,2]
[424186602,1780635039000,-1159.11,0.00013698,2]
[424186606,1780635039000,-1159.11,0.00013698,2]
[424186608,1780635039000,-1159.11,0.00013698,2]
[424186607,1780635039000,-1159.11,0.00013698,2]
[424186609,1780635039000,-1159.11,0.00013698,2]
[424186610,1780635039000,-500.0,0.00013698,2]
[424186555,1780635039000,-500.0,0.00013562,2]
[424186603,1780635039000,-1159.11,0.00013698,2]
[424186591,1780635039000,-506.27717057,0.00013698,2]
[424186595,1780635039000,-1159.11,0.00013698,2]
[424186575,1780635039000,-787.0,0.00013562,2]
[424186550,1780635039000,-500.0,0.00013562,2]
[424186578,1780635039000,-787.0,0.00013562,2]
[424186549,1780635039000,-546.23907018,0.00013562,2]
[424186552,1780635039000,-500.0,0.00013562,2]
[424186551,1780635039000,-500.0,0.00013562,2]
[424186553,1780635039000,-500.0,0.00013562,2]
[424186557,1780635039000,-500.0,0.00013562,2]
[424186561,1780635039000,-203.99141627,0.00013562,2]
[424186567,1780635039000,-787.0,0.00013562,2]
[424186568,1780635039000,-787.0,0.00013562,2]
[424186565,1780635039000,-787.0,0.00013562,2]
[424186559,1780635039000,-150.0,0.00013562,2]
[424186556,1780635039000,-500.0,0.00013562,2]
[424186558,1780635039000,-375.79794642,0.00013562,2]
[424186566,1780635039000,-787.0,0.00013562,2]
[424186576,1780635039000,-787.0,0.00013562,2]
[424186564,1780635039000,-787.0,0.00013562,2]
[424186560,1780635039000,-150.0,0.00013562,2]
[424186562,1780635039000,-787.0,0.00013562,2]
[424186570,1780635039000,-787.0,0.00013562,2]
[424186579,1780635039000,-787.0,0.00013562,2]
[424186569,1780635039000,-787.0,0.00013562,2]
[424186571,1780635039000,-787.0,0.00013562,2]
[424186574,1780635039000,-787.0,0.00013562,2]
[424186580,1780635039000,-787.0,0.00013562,2]
[424186573,1780635039000,-787.0,0.00013562,2]
[424186563,1780635039000,-787.0,0.00013562,2]
[424186572,1780635039000,-787.0,0.00013562,2]
[424186577,1780635039000,-787.0,0.00013562,2]
[424186657,1780635040000,-9999.99,0.00013699,2]
[424186659,1780635040000,-736.0,0.00013699,2]
[424186643,1780635040000,-500.0,0.00013698,2]
[424186662,1780635040000,-736.0,0.00013699,2]
[424186665,1780635040000,-736.0,0.00013699,2]
[424186664,1780635040000,-736.0,0.00013699,2]
[424186645,1780635040000,-500.0,0.00013698,2]
[424186656,1780635040000,-29999.99,0.00013699,2]
[424186653,1780635040000,-200.0,0.00013699,2]
[424186654,1780635040000,-2500.0,0.00013699,2]
[424186652,1780635040000,-443.26218347,0.00013698,2]
[424186660,1780635040000,-736.0,0.00013699,2]
[424186655,1780635040000,-166.66,0.00013699,2]
[424186658,1780635040000,-736.0,0.00013699,2]
[424186675,1780635040000,-736.0,0.00013699,2]
[424186661,1780635040000,-736.0,0.00013699,2]
[424186667,1780635040000,-736.0,0.00013699,2]
[424186677,1780635040000,-736.0,0.00013699,2]
[424186676,1780635040000,-736.0,0.00013699,2]
[424186669,1780635040000,-736.0,0.00013699,2]
[424186666,1780635040000,-736.0,0.00013699,2]
[424186678,1780635040000,-736.0,0.00013699,2]
[424186672,1780635040000,-736.0,0.00013699,2]
[424186673,1780635040000,-736.0,0.00013699,2]
[424186671,1780635040000,-736.0,0.00013699,2]
[424186670,1780635040000,-736.0,0.00013699,2]
[424186668,1780635040000,-736.0,0.00013699,2]
[424186674,1780635040000,-736.0,0.00013699,2]
[424186644,1780635040000,-500.0,0.00013698,2]
[424186663,1780635040000,-736.0,0.00013699,2]
[424186646,1780635040000,-500.0,0.00013698,2]
[424186611,1780635040000,-500.0,0.00013698,2]
[424186638,1780635040000,-1016.47,0.00013698,2]
[424186618,1780635040000,-500.0,0.00013698,2]
[424186619,1780635040000,-500.0,0.00013698,2]
[424186620,1780635040000,-500.0,0.00013698,2]
[424186613,1780635040000,-500.0,0.00013698,2]
[424186614,1780635040000,-500.0,0.00013698,2]
[424186615,1780635040000,-1016.47,0.00013698,2]
[424186617,1780635040000,-1016.47,0.00013698,2]
[424186612,1780635040000,-1016.47,0.00013698,2]
[424186616,1780635040000,-500.0,0.00013698,2]
[424186623,1780635040000,-561.38174494,0.00013698,2]
[424186625,1780635040000,-1016.47,0.00013698,2]
[424186622,1780635040000,-500.0,0.00013698,2]
[424186632,1780635040000,-1016.47,0.00013698,2]
[424186633,1780635040000,-1016.47,0.00013698,2]
[424186642,1780635040000,-544.61383145,0.00013698,2]
[424186629,1780635040000,-1016.47,0.00013698,2]
[424186631,1780635040000,-1016.47,0.00013698,2]
[424186635,1780635040000,-1016.47,0.00013698,2]
[424186630,1780635040000,-1016.47,0.00013698,2]
[424186634,1780635040000,-1016.47,0.00013698,2]
[424186637,1780635040000,-1016.47,0.00013698,2]
[424186636,1780635040000,-1016.47,0.00013698,2]
[424186640,1780635040000,-1016.47,0.00013698,2]
[424186639,1780635040000,-1016.47,0.00013698,2]
[424186650,1780635040000,-500.0,0.00013698,2]
[424186648,1780635040000,-500.0,0.00013698,2]
[424186647,1780635040000,-500.0,0.00013698,2]
[424186641,1780635040000,-500.0,0.00013698,2]
[424186651,1780635040000,-562.28097781,0.00013698,2]
[424186649,1780635040000,-500.0,0.00013698,2]
[424186627,1780635040000,-1016.47,0.00013698,2]
[424186679,1780635040000,-736.0,0.00013699,2]
[424186695,1780635040000,-250.0,0.00014,2]
[424186691,1780635040000,-241.91148284,0.00013916,2]
[424186710,1780635040000,-425.3532313,0.00014619,2]
[424186721,1780635040000,-500.0,0.000148,5]
[424186718,1780635040000,-274.030546,0.00014773,2]
[424186722,1780635040000,-2100.0,0.000148,5]
[424186723,1780635040000,-160.0,0.00014847,2]
[424186728,1780635040000,-426.29968257,0.00014893,2]
[424186724,1780635040000,-816.727239,0.00014847,2]
[424186727,1780635040000,-200.0,0.00014872,2]
[424186719,1780635040000,-228.92818,0.00014773,2]
[424186726,1780635040000,-233439.72378349,0.0001485,2]
[424186725,1780635040000,-1473.454478,0.00014847,2]
[424186730,1780635040000,-450.0,0.000149,2]
[424186729,1780635040000,-451.0,0.000149,2]
[424186731,1780635040000,-442.0,0.000149,2]
[424186715,1780635040000,-2100.0,0.000147,5]
[424186733,1780635040000,-1120.699,0.000149,2]
[424186742,1780635040000,-2000.0,0.00014943,2]
[424186734,1780635040000,-692.97928706,0.000149,2]
[424186736,1780635040000,-452.32649715,0.000149,2]
[424186745,1780635040000,-2000.0,0.00014943,2]
[424186732,1780635040000,-778.8815,0.000149,2]
[424186743,1780635040000,-2000.0,0.00014943,2]
[424186738,1780635040000,-219.18244468,0.000149,2]
[424186735,1780635040000,-500.0,0.000149,5]
[424186741,1780635040000,-2000.0,0.00014943,2]
[424186737,1780635040000,-2100.0,0.000149,5]
[424186739,1780635040000,-418.57959641,0.00014918,2]
[424186740,1780635040000,-2000.0,0.00014943,2]
[424186746,1780635040000,-2000.0,0.00014943,2]
[424186680,1780635040000,-736.0,0.00013699,2]
[424186744,1780635040000,-2000.0,0.00014943,2]
[424186714,1780635040000,-1614.543352,0.000147,2]
[424186747,1780635040000,-2000.0,0.00014943,2]
[424186711,1780635040000,-2000.0,0.00014642,2]
[424186690,1780635040000,-433.0,0.0001385,2]
[424186686,1780635040000,-150.0,0.00013845,2]
[424186683,1780635040000,-175.41,0.00013763,2]
[424186687,1780635040000,-150.0,0.00013845,2]
[424186682,1780635040000,-609.74,0.000137,2]
[424186689,1780635040000,-426.29968257,0.00013849,2]
[424186684,1780635040000,-500.0,0.00013797,2]
[424186685,1780635040000,-166.66,0.00013836,2]
[424186713,1780635040000,-500.0,0.000147,5]
[424186688,1780635040000,-277.92638462,0.00013845,2]
[424186692,1780635040000,-166.66,0.00013973,2]
[424186694,1780635040000,-39398.39409034,0.0001399,2]
[424186696,1780635040000,-500.0,0.00014071,2]
[424186693,1780635040000,-2351.0,0.00013989,2]
[424186704,1780635040000,-166.66,0.00014384,2]
[424186681,1780635040000,-739.46159652,0.00013699,2]
[424186703,1780635040000,-500.0,0.00014345,2]
[424186712,1780635040000,-177.592771,0.00014692,2]
[424186697,1780635040000,-175.41,0.00014084,2]
[424186705,1780635040000,-1159.11,0.00014498,2]
[424186707,1780635040000,-426.29968257,0.00014545,2]
[424186708,1780635040000,-500.0,0.000146,5]
[424186709,1780635040000,-2100.0,0.000146,5]
[424186717,1780635040000,-217.015273,0.00014773,2]
[424186706,1780635040000,-1016.47,0.00014498,2]
[424186701,1780635040000,-166.66,0.00014247,2]
[424186699,1780635040000,-426.29968257,0.00014197,2]
[424186702,1780635040000,-151.21239302,0.00014321,2]
[424186700,1780635040000,-150.0,0.00014237,2]
[424186698,1780635040000,-166.66,0.0001411,2]
[424186716,1780635040000,-160.0,0.00014773,2]
[424186790,1780635041000,-1000.0,0.0001495,2]
[424186789,1780635041000,-1000.0,0.0001495,2]
[424186788,1780635041000,-1000.0,0.0001495,2]
[424186792,1780635041000,-1000.0,0.0001495,2]
[424186785,1780635041000,-1000.0,0.0001495,2]
[424186777,1780635041000,-1000.0,0.0001495,2]
[424186795,1780635041000,-1000.0,0.0001495,2]
[424186797,1780635041000,-299.57,0.0001495,2]
[424186794,1780635041000,-1000.0,0.0001495,2]
[424186786,1780635041000,-1000.0,0.0001495,2]
[424186782,1780635041000,-1000.0,0.0001495,2]
[424186776,1780635041000,-1000.0,0.0001495,2]
[424186796,1780635041000,-1000.0,0.0001495,2]
[424186791,1780635041000,-1000.0,0.0001495,2]
[424186809,1780635041000,-1000.0,0.0001495,2]
[424186787,1780635041000,-1000.0,0.0001495,2]
[424186798,1780635041000,-1000.0,0.0001495,2]
[424186810,1780635041000,-624.82,0.0001495,2]
[424186799,1780635041000,-1000.0,0.0001495,2]
[424186800,1780635041000,-1000.0,0.0001495,2]
[424186808,1780635041000,-1000.0,0.0001495,2]
[424186802,1780635041000,-1000.0,0.0001495,2]
[424186805,1780635041000,-1000.0,0.0001495,2]
[424186801,1780635041000,-1000.0,0.0001495,2]
[424186804,1780635041000,-1000.0,0.0001495,2]
[424186806,1780635041000,-1000.0,0.0001495,2]
[424186807,1780635041000,-1000.0,0.0001495,2]
[424186778,1780635041000,-1000.0,0.0001495,2]
[424186803,1780635041000,-1000.0,0.0001495,2]
[424186793,1780635041000,-1000.0,0.0001495,2]
[424186784,1780635041000,-1000.0,0.0001495,2]
[424186762,1780635041000,-500.49,0.00014943,2]
[424186775,1780635041000,-1000.0,0.0001495,2]
[424186812,1780635041000,-1000.0,0.0001495,2]
[424186756,1780635041000,-2000.0,0.00014943,2]
[424186757,1780635041000,-2000.0,0.00014943,2]
[424186749,1780635041000,-2000.0,0.00014943,2]
[424186748,1780635041000,-2000.0,0.00014943,2]
[424186750,1780635041000,-2000.0,0.00014943,2]
[424186751,1780635041000,-2000.0,0.00014943,2]
[424186752,1780635041000,-2000.0,0.00014943,2]
[424186755,1780635041000,-150.0,0.00014943,2]
[424186753,1780635041000,-2000.0,0.00014943,2]
[424186759,1780635041000,-2000.0,0.00014943,2]
[424186760,1780635041000,-2000.0,0.00014943,2]
[424186761,1780635041000,-2000.0,0.00014943,2]
[424186758,1780635041000,-2000.0,0.00014943,2]
[424186769,1780635041000,-1000.0,0.0001495,2]
[424186770,1780635041000,-1000.0,0.0001495,2]
[424186765,1780635041000,-2000.0,0.00014943,2]
[424186766,1780635041000,-1500.29,0.00014943,2]
[424186763,1780635041000,-2000.0,0.00014943,2]
[424186767,1780635041000,-1000.0,0.0001495,2]
[424186768,1780635041000,-1000.0,0.0001495,2]
[424186764,1780635041000,-2000.0,0.00014943,2]
[424186772,1780635041000,-1000.0,0.0001495,2]
[424186771,1780635041000,-1000.0,0.0001495,2]
[424186773,1780635041000,-1000.0,0.0001495,2]
[424186774,1780635041000,-1000.0,0.0001495,2]
[424186781,1780635041000,-1000.0,0.0001495,2]
[424186780,1780635041000,-1000.0,0.0001495,2]
[424186783,1780635041000,-1000.0,0.0001495,2]
[424186779,1780635041000,-1000.0,0.0001495,2]
[424186822,1780635041000,-185.94247681,0.00014986,2]
[424186754,1780635041000,-1851.16,0.00014943,2]
[424186823,1780635041000,-151.0,0.0001499,2]
[424186844,1780635041000,-300.0,0.00014999,2]
[424186851,1780635041000,-351.7515791,0.00015,2]
[424186850,1780635041000,-14098996.14681388,0.00015,2]
[424186852,1780635041000,-452.0,0.00015,2]
[424186853,1780635041000,-449.0,0.00015,2]
[424186855,1780635041000,-2000.0,0.00015,2]
[424186857,1780635041000,-2000.0,0.00015,2]
[424186856,1780635041000,-2000.0,0.00015,2]
[424186862,1780635041000,-2000.0,0.00015,2]
[424186858,1780635041000,-2000.0,0.00015,2]
[424186861,1780635041000,-1816.21,0.00015,2]
[424186854,1780635041000,-457.0,0.00015,2]
[424186860,1780635041000,-2000.0,0.00015,2]
[424186859,1780635041000,-2000.0,0.00015,2]
[424186864,1780635041000,-1756.75,0.00015,2]
[424186874,1780635041000,-500.0,0.00015,2]
[424186875,1780635041000,-500.0,0.00015,2]
[424186876,1780635041000,-500.0,0.00015,2]
[424186863,1780635041000,-2000.0,0.00015,2]
[424186869,1780635041000,-151.0,0.00015,2]
[424186865,1780635041000,-2000.0,0.00015,2]
[424186871,1780635041000,-500.0,0.00015,2]
[424186870,1780635041000,-151.0,0.00015,2]
[424186866,1780635041000,-1454.05,0.00015,2]
[424186868,1780635041000,-151.0,0.00015,2]
[424186811,1780635041000,-1000.0,0.0001495,2]
[424186867,1780635041000,-7013.8716214,0.00015,7]
[424186872,1780635041000,-500.0,0.00015,2]
[424186877,1780635041000,-500.0,0.00015,2]
[424186846,1780635041000,-300.0,0.00014999,2]
[424186847,1780635041000,-666.0,0.00014999,2]
[424186873,1780635041000,-500.0,0.00015,2]
[424186845,1780635041000,-666.0,0.00014999,2]
[424186841,1780635041000,-21145.7078335,0.00014993,2]
[424186814,1780635041000,-1000.0,0.0001495,2]
[424186813,1780635041000,-1000.0,0.0001495,2]
[424186816,1780635041000,-1000.0,0.0001495,2]
[424186817,1780635041000,-1000.0,0.0001495,2]
[424186818,1780635041000,-574.89,0.0001495,2]
[424186819,1780635041000,-1051.59107422,0.00014982,2]
[424186820,1780635041000,-154.53400447,0.00014986,2]
[424186821,1780635041000,-236.15184554,0.00014986,2]
[424186824,1780635041000,-6999.8107934,0.00014992,2]
[424186825,1780635041000,-2765.0305413,0.00014992,2]
[424186829,1780635041000,-1159.11,0.00014992,2]
[424186836,1780635041000,-1016.47,0.00014992,2]
[424186826,1780635041000,-1510467.3513634,0.00014992,2]
[424186835,1780635041000,-1016.47,0.00014992,2]
[424186815,1780635041000,-1000.0,0.0001495,2]
[424186828,1780635041000,-1159.11,0.00014992,2]
[424186827,1780635041000,-1159.11,0.00014992,2]
[424186840,1780635041000,-1153.9025839,0.00014993,2]
[424186837,1780635041000,-1016.47,0.00014992,2]
[424186839,1780635041000,-578274.809274,0.00014993,2]
[424186848,1780635041000,-300.0,0.00014999,2]
[424186849,1780635041000,-2388946.08796887,0.00015,2]
[424186843,1780635041000,-666.0,0.00014999,2]
[424186833,1780635041000,-1016.47,0.00014992,2]
[424186834,1780635041000,-1016.47,0.00014992,2]
[424186838,1780635041000,-1016.70869131,0.00014992,2]
[424186842,1780635041000,-151.0,0.00014997,2]
[424186831,1780635041000,-1159.11,0.00014992,2]
[424186832,1780635041000,-1159.30171174,0.00014992,2]
[424186830,1780635041000,-1159.11,0.00014992,2]
[424186909,1780635042000,-500.0,0.00015,2]
[424186915,1780635042000,-159.0,0.00015,2]
[424186910,1780635042000,-358.98545701,0.00015,3]
[424186911,1780635042000,-159.0,0.00015,2]
[424186916,1780635042000,-162.63651089,0.00015,2]
[424186913,1780635042000,-159.0,0.00015,2]
[424186914,1780635042000,-159.0,0.00015,2]
[424186918,1780635042000,-900.0,0.00015068,2]
[424186920,1780635042000,-284.914396,0.00015068,2]
[424186919,1780635042000,-284.914396,0.00015068,2]
[424186917,1780635042000,-249.44277675,0.00015001,2]
[424186912,1780635042000,-159.0,0.00015,2]
[424186923,1780635042000,-736.0,0.00015128,2]
[424186933,1780635042000,-272.18230744,0.00015769,2]
[424186932,1780635042000,-1113.718962,0.00015589,2]
[424186921,1780635042000,-284.914396,0.00015068,2]
[424186926,1780635042000,-753.44327354,0.00015303,2]
[424186922,1780635042000,-284.914396,0.00015068,2]
[424186925,1780635042000,-609.74,0.000153,2]
[424186928,1780635042000,-1030.0,0.0001538,2]
[424186931,1780635042000,-250.0,0.00015532,2]
[424186927,1780635042000,-1500.0,0.00015379,2]
[424186929,1780635042000,-3292.0,0.00015388,2]
[424186930,1780635042000,-295.929917,0.00015512,2]
[424186908,1780635042000,-214.74636425,0.00015,2]
[424186924,1780635042000,-1517.64,0.000153,2]
[424186905,1780635042000,-151.0,0.00015,2]
[424186894,1780635042000,-500.0,0.00015,2]
[424186904,1780635042000,-836.056231,0.00015,2]
[424186879,1780635042000,-500.0,0.00015,2]
[424186881,1780635042000,-500.0,0.00015,2]
[424186878,1780635042000,-500.0,0.00015,2]
[424186882,1780635042000,-500.0,0.00015,2]
[424186880,1780635042000,-500.0,0.00015,2]
[424186883,1780635042000,-500.0,0.00015,2]
[424186885,1780635042000,-500.0,0.00015,2]
[424186886,1780635042000,-500.0,0.00015,2]
[424186887,1780635042000,-500.0,0.00015,2]
[424186892,1780635042000,-500.0,0.00015,2]
[424186889,1780635042000,-500.0,0.00015,2]
[424186890,1780635042000,-500.0,0.00015,2]
[424186903,1780635042000,-836.056231,0.00015,2]
[424186884,1780635042000,-500.0,0.00015,2]
[424186893,1780635042000,-500.0,0.00015,2]
[424186895,1780635042000,-500.0,0.00015,2]
[424186891,1780635042000,-500.0,0.00015,2]
[424186896,1780635042000,-500.0,0.00015,2]
[424186907,1780635042000,-151.0,0.00015,2]
[424186900,1780635042000,-151.0,0.00015,2]
[424186902,1780635042000,-836.056231,0.00015,2]
[424186906,1780635042000,-151.0,0.00015,2]
[424186897,1780635042000,-500.0,0.00015,2]
[424186901,1780635042000,-836.056231,0.00015,2]
[424186898,1780635042000,-311.562506,0.00015,2]
[424186899,1780635042000,-151.0,0.00015,2]
[424186888,1780635042000,-500.0,0.00015,2]
[424186934,1780635042000,-731.04310205,0.00015807,2]
[424186938,1780635042000,-1068.11,0.00015928,2]
[424186937,1780635042000,-1555.5,0.00015927,2]
[424186971,1780635042000,-1252.0,0.00016522,2]
[424186973,1780635042000,-168.28,0.00016712,2]
[424186975,1780635042000,-716.67,0.00016767,2]
[424186977,1780635042000,-574.19,0.00016931,2]
[424186978,1780635042000,-552.65,0.00016932,2]
[424186974,1780635042000,-1570.44,0.00016745,2]
[424186985,1780635042000,-169.61,0.00017163,2]
[424186976,1780635042000,-4609.0,0.00016926,2]
[424186982,1780635042000,-1148.61238259,0.00017024,2]
[424186980,1780635042000,-553.0,0.00016939,2]
[424186983,1780635042000,-500.0,0.00017048,2]
[424186981,1780635042000,-1672.7364795,0.00017023,2]
[424186979,1780635042000,-1098.29,0.00016932,2]
[424186986,1780635042000,-169.61,0.00017163,2]
[424186988,1780635042000,-535.56,0.00017425,2]
[424186989,1780635042000,-1064.33,0.00017425,2]
[424186995,1780635042000,-218.5,0.00017648,2]
[424186987,1780635042000,-242.08853918,0.00017252,2]
[424186990,1780635042000,-2000.0,0.00017571,2]
[424186996,1780635042000,-794.06678124,0.000177,2]
[424186992,1780635042000,-1191.11104074,0.00017572,2]
[424186993,1780635042000,-150.0,0.00017596,2]
[424186994,1780635042000,-550.98863392,0.00017616,3]
[424186991,1780635042000,-1734.62772924,0.00017571,2]
[424186936,1780635042000,-500.0,0.00015837,2]
[424186968,1780635042000,-6623.30767049,0.000165,2]
[424186970,1780635042000,-500.0,0.000165,2]
[424186984,1780635042000,-579.13386,0.00017074,2]
[424186969,1780635042000,-1000.0,0.000165,2]
[424186939,1780635042000,-500.0,0.00015952,2]
[424186972,1780635042000,-500.0,0.000166,3]
[424186941,1780635042000,-160.0,0.00016,8]
[424186942,1780635042000,-300.0,0.00016,2]
[424186943,1780635042000,-635.4481525,0.00016,2]
[424186945,1780635042000,-635.4481525,0.000161,2]
[424186935,1780635042000,-2000.0,0.00015837,2]
[424186940,1780635042000,-779.10858517,0.00016,2]
[424186947,1780635042000,-17128.12783429,0.0001611,15]
[424186946,1780635042000,-2000.0,0.00016106,2]
[424186957,1780635042000,-151.0,0.00016438,2]
[424186949,1780635042000,-553.0,0.00016117,2]
[424186948,1780635042000,-9999.99,0.00016116,2]
[424186944,1780635042000,-259.22,0.000161,14]
[424186966,1780635042000,-1107.63007,0.00016476,2]
[424186950,1780635042000,-200.0,0.0001634,2]
[424186952,1780635042000,-591.95,0.00016438,2]
[424186951,1780635042000,-569.75,0.00016438,2]
[424186955,1780635042000,-900.0,0.00016438,2]
[424186954,1780635042000,-230.52,0.00016438,2]
[424186956,1780635042000,-164.81782,0.00016438,2]
[424186958,1780635042000,-1541.829306,0.00016438,2]
[424186959,1780635042000,-1541.829306,0.00016438,2]
[424186962,1780635042000,-1541.829306,0.00016438,2]
[424186953,1780635042000,-1132.26,0.00016438,2]
[424186961,1780635042000,-1541.829306,0.00016438,2]
[424186964,1780635042000,-1613.0535,0.00016475,2]
[424187037,1780635043000,-366.35003461,0.000186,2]
[424187036,1780635043000,-553.0,0.00018583,2]
[424187028,1780635043000,-89772.95,0.00018356,2]
[424187045,1780635043000,-1865.36488656,0.00018667,2]
[424187040,1780635043000,-440.11492001,0.000186,2]
[424187035,1780635043000,-1553.02,0.000185,2]
[424187025,1780635043000,-440.11492001,0.000182,2]
[424187031,1780635043000,-2016.58794916,0.000184,2]
[424187026,1780635043000,-399.99999999,0.000182,2]
[424187027,1780635043000,-168.39,0.00018292,2]
[424187038,1780635043000,-165.92230801,0.000186,2]
[424187032,1780635043000,-440.11492001,0.000184,2]
[424187039,1780635043000,-2016.58794916,0.000186,2]
[424187057,1780635043000,-440.11492001,0.000188,2]
[424187042,1780635043000,-6453.0,0.00018619,2]
[424187043,1780635043000,-2000.0,0.00018638,2]
[424187044,1780635043000,-500.0,0.00018638,2]
[424187047,1780635043000,-6917.5551226,0.00018721,2]
[424187046,1780635043000,-1280.88388877,0.00018668,2]
[424187049,1780635043000,-524.42258206,0.00018747,2]
[424187059,1780635043000,-6917.5551226,0.00018809,2]
[424187048,1780635043000,-6917.5551226,0.00018744,2]
[424187050,1780635043000,-524.42258206,0.0001876,2]
[424187053,1780635043000,-6917.5551226,0.00018784,2]
[424187056,1780635043000,-2016.58794916,0.000188,2]
[424187052,1780635043000,-6917.5551226,0.00018783,2]
[424187024,1780635043000,-2016.58794916,0.000182,2]
[424187041,1780635043000,-399.99999999,0.000186,2]
[424187029,1780635043000,-366.35003461,0.000184,2]
[424186999,1780635043000,-152.95,0.000178,2]
[424187030,1780635043000,-165.92230801,0.000184,2]
[424187054,1780635043000,-513.16691688,0.00018793,2]
[424186997,1780635043000,-609.74,0.000177,2]
[424187007,1780635043000,-1208.99682724,0.00018,2]
[424186998,1780635043000,-553.0,0.00017761,2]
[424187008,1780635043000,-500.0,0.00018,3]
[424187009,1780635043000,-350.0,0.00018,2]
[424187003,1780635043000,-228.337412,0.00017999,2]
[424187004,1780635043000,-666.0,0.00017999,2]
[424187000,1780635043000,-1240.95340377,0.0001789,2]
[424187005,1780635043000,-300.0,0.00017999,2]
[424187002,1780635043000,-681.07442116,0.00017999,2]
[424187001,1780635043000,-200.0,0.00017988,2]
[424187006,1780635043000,-110992.59983393,0.00018,2]
[424187034,1780635043000,-4473.9,0.0001841,2]
[424187010,1780635043000,-500.0,0.00018,3]
[424187013,1780635043000,-500.0,0.00018,3]
[424187017,1780635043000,-1030.36,0.00018082,2]
[424187014,1780635043000,-500.0,0.00018,3]
[424187011,1780635043000,-500.0,0.00018,3]
[424187016,1780635043000,-199.04532036,0.00018074,3]
[424187012,1780635043000,-500.0,0.00018,3]
[424187018,1780635043000,-1804.15913055,0.000181,2]
[424187020,1780635043000,-1235.18214925,0.0001812,2]
[424187019,1780635043000,-1798.80895522,0.00018119,2]
[424187021,1780635043000,-170.12885323,0.00018144,2]
[424187022,1780635043000,-366.35003461,0.000182,2]
[424187033,1780635043000,-399.99999999,0.000184,2]
[424187023,1780635043000,-165.92230801,0.000182,2]
[424187015,1780635043000,-2129.0,0.00018044,2]
[424187058,1780635043000,-399.99999999,0.000188,2]
[424187088,1780635043000,-4190.0,0.00019,2]
[424187051,1780635043000,-513.16691688,0.00018777,2]
[424187096,1780635043000,-524.42258206,0.00019031,2]
[424187095,1780635043000,-6917.5551226,0.00019003,2]
[424187094,1780635043000,-19488.60681115,0.00019,2]
[424187097,1780635043000,-524.42258206,0.0001904,2]
[424187100,1780635043000,-150.0,0.00019178,2]
[424187110,1780635043000,-188.016442,0.00019178,2]
[424187111,1780635043000,-188.016442,0.00019178,2]
[424187099,1780635043000,-6917.5551226,0.00019043,2]
[424187101,1780635043000,-150.0,0.00019178,2]
[424187105,1780635043000,-250.0,0.00019178,2]
[424187106,1780635043000,-250.0,0.00019178,2]
[424187104,1780635043000,-250.0,0.00019178,2]
[424187108,1780635043000,-188.016442,0.00019178,2]
[424187102,1780635043000,-150.0,0.00019178,2]